bitfinex/quotes_SOLUSD_20241229
["timestamp","ask_amount","ask_price","bid_price","bid_amount"]
[1735440523883,23.776884,194.37,194.27,25.9]
[1735440527182,20.0,194.34,194.23,6.67196952]
[1735440527371,1.6541,194.38,194.23,5.9]
[1735440527372,23.776884,194.33,194.23,5.9]
[1735440527571,1.6541,194.38,194.23,5.9]
[1735440527773,23.776884,194.37,194.24,6.83580189]
[1735440527972,23.776884,194.37,194.27,25.9]
[1735440532903,23.776884,194.37,194.27,24.29]
[1735440533069,16.17586631,194.39,194.28,1.573]
[1735440533392,16.17586631,194.39,194.28,2.34491596]
[1735440533572,23.776884,194.38,194.28,2.34491596]
[1735440534391,23.776884,194.41,194.28,8.24491596]
[1735440535685,23.776884,194.41,194.28,7.473]
[1735440537097,39.95275031,194.41,194.28,7.473]
[1735440537874,23.776884,194.39,194.28,7.473]
[1735440538597,23.776884,194.4,194.28,7.473]
[1735440539095,39.95275031,194.4,194.28,7.473]
[1735440539884,23.776884,194.39,194.28,7.473]
[1735440541093,23.776884,194.39,194.28,5.9]
[1735440541398,23.776884,194.37,194.27,24.29]
[1735440542198,39.95275031,194.37,194.27,24.29]
[1735440543001,39.95275031,194.37,194.24,11.9638]
[1735440543291,46.18605031,194.37,194.24,11.9638]
[1735440543697,46.18605031,194.37,194.23,7.473]
[1735440543698,23.776884,194.33,194.23,7.473]
[1735440544183,23.776884,194.33,194.23,1.573]
[1735440544385,23.776884,194.33,194.19,24.22647954]
[1735440544581,23.776884,194.33,194.19,14.0359]
[1735440544582,23.776884,194.31,194.19,14.0359]
[1735440545493,39.95275031,194.31,194.19,14.0359]
[1735440548096,16.17586631,194.31,194.22,20.0]
[1735440549306,39.95275031,194.35,194.22,20.0]
[1735440549504,39.95275031,194.35,194.22,25.9]
[1735440549901,23.776884,194.33,194.22,25.9]
[1735440550394,39.95275031,194.33,194.22,25.9]
[1735440551808,39.95275031,194.35,194.22,25.9]
[1735440552110,23.776884,194.34,194.22,25.9]
[1735440553596,20.0,194.33,194.22,25.9]
[1735440553797,23.776884,194.32,194.22,25.9]
[1735440562517,8.08511027,194.34,194.22,25.9]
[1735440562708,8.08511027,194.34,194.27,1.6602]
[1735440562897,8.08511027,194.34,194.27,8.3321092]
[1735440563711,23.776884,194.35,194.27,8.3321092]
[1735440563917,8.08511027,194.37,194.27,8.3321092]
[1735440564640,8.08511027,194.4,194.27,18.52268874]
[1735440564806,23.776884,194.39,194.27,8.3321092]
[1735440564997,23.776884,194.39,194.27,7.5602]
[1735440573519,23.776884,194.39,194.27,1.6602]
[1735440574330,23.776884,194.37,194.27,1.6602]
[1735440585422,23.776884,194.37,194.26,32.2198]
[1735440585830,31.86199427,194.37,194.26,32.2198]
[1735440588536,8.08511027,194.36,194.26,32.2198]
[1735440588846,23.776884,194.35,194.26,32.2198]
[1735440589446,23.776884,194.36,194.26,32.2198]
[1735440590261,31.86199427,194.36,194.26,32.2198]
[1735440592640,8.08511027,194.35,194.26,32.2198]
[1735440593648,31.86199427,194.36,194.26,32.2198]
[1735440596062,8.08511027,194.35,194.26,32.2198]
[1735440599158,31.86199427,194.36,194.26,32.2198]
[1735440599461,8.08511027,194.36,194.29,1.6581]
[1735440600146,23.776884,194.38,194.29,1.6581]
[1735440600344,8.08511027,194.39,194.29,11.84867954]
[1735440600551,8.08511027,194.4,194.3,10.19057954]
[1735440601159,23.776884,194.39,194.3,5.9]
[1735440601758,8.08511027,194.4,194.3,5.9]
[1735440601759,23.776884,194.4,194.3,5.9]
[1735440604833,23.776884,194.4,194.31,20.0]
[1735440605268,8.08511027,194.39,194.31,20.0]
[1735440605961,23.776884,194.37,194.28,5.9]
[1735440606645,8.08511027,194.38,194.26,6.3198]
[1735440606646,23.776884,194.35,194.29,20.0]
[1735440609667,23.776884,194.35,194.3,20.0]
[1735440609850,8.08511027,194.36,194.3,20.0]
[1735440610169,8.08511027,194.36,194.31,20.0]
[1735440610665,8.08511027,194.37,194.29,30.19057954]
[1735440610866,8.08511027,194.37,194.29,20.0]
[1735440611557,23.776884,194.38,194.29,20.0]
[1735440612263,31.86199427,194.38,194.29,20.0]
[1735440612562,31.86199427,194.38,194.29,25.9]
[1735440613358,48.03786058,194.38,194.29,25.9]
[1735440613567,23.776884,194.35,194.29,25.9]
[1735440613964,23.776884,194.36,194.29,25.9]
[1735440614465,31.86199427,194.36,194.29,25.9]
[1735440618572,31.86199427,194.36,194.29,20.0]
[1735440619573,8.08511027,194.36,194.29,20.0]
[1735440619968,23.776884,194.36,194.29,20.0]
[1735440620780,31.86199427,194.36,194.29,20.0]
[1735440621374,23.776884,194.36,194.29,20.0]
[1735440621582,23.776884,194.36,194.29,25.9]
[1735440622079,31.86199427,194.36,194.29,25.9]
[1735440624796,8.08511027,194.36,194.29,36.09057954]
[1735440625085,8.08511027,194.37,194.29,36.09057954]
[1735440625759,8.08511027,194.38,194.29,36.09057954]
[1735440626483,23.776884,194.38,194.29,36.09057954]
[1735440627382,23.776884,194.39,194.29,36.09057954]
[1735440628157,23.776884,194.39,194.29,25.9]
[1735440628981,8.08511027,194.4,194.33,25.9]
[1735440629187,8.08511027,194.4,194.37,20.0]
[1735440629366,8.08511027,194.4,194.37,25.9]
[1735440629997,23.776884,194.44,194.37,25.9]
[1735440630172,23.776884,194.44,194.34,5.9]
[1735440630562,31.86199427,194.44,194.34,5.9]
[1735440631183,23.776884,194.42,194.34,5.9]
[1735440631883,31.86199427,194.42,194.34,5.9]
[1735440632484,23.776884,194.42,194.34,5.9]
[1735440633186,31.86199427,194.42,194.34,5.9]
[1735440633689,31.86199427,194.42,194.36,20.0]
[1735440633873,23.776884,194.42,194.36,20.0]
[1735440635787,23.776884,194.42,194.33,5.9]
[1735440636791,31.86199427,194.42,194.33,5.9]
[1735440637787,23.776884,194.42,194.33,5.9]
[1735440645691,31.86199427,194.42,194.33,5.9]
[1735440651699,31.86199427,194.42,194.34,20.0]
[1735440651881,31.86199427,194.42,194.35,20.0]
[1735440652396,31.86199427,194.42,194.34,20.0]
[1735440653298,31.86199427,194.42,194.35,20.0]
[1735440654002,33.50079427,194.42,194.31,5.9]
[1735440654576,23.776884,194.39,194.3,8.0725]
[1735440654797,23.776884,194.39,194.33,20.0]
[1735440657216,8.08511027,194.4,194.33,20.0]
[1735440657217,23.776884,194.4,194.33,20.0]
[1735440660081,31.86199427,194.4,194.33,20.0]
[1735440663794,8.08511027,194.39,194.33,20.0]
[1735440664412,23.776884,194.38,194.33,20.0]
[1735440665204,8.08511027,194.4,194.33,20.0]
[1735440666708,23.776884,194.38,194.33,20.0]
[1735440667407,23.776884,194.39,194.33,20.0]
[1735440670085,31.86199427,194.39,194.33,20.0]
[1735440671706,8.08511027,194.38,194.33,20.0]
[1735440675239,8.08511027,194.38,194.3,13.9725]
[1735440699029,8.08511027,194.38,194.33,20.0]
[1735440699235,8.08511027,194.38,194.32,10.19057954]
[1735440699430,8.08511027,194.38,194.33,30.19057954]
[1735440699637,8.08511027,194.4,194.33,30.19057954]
[1735440700436,8.08511027,194.41,194.33,30.19057954]
[1735440701109,8.08511027,194.41,194.34,10.19057954]
[1735440701734,8.08511027,194.43,194.34,16.09057954]
[1735440702935,8.08511027,194.43,194.35,10.19057954]
[1735440704416,8.08511027,194.44,194.35,10.19057954]
[1735440705940,8.08511027,194.44,194.38,20.0]
[1735440708548,23.776884,194.44,194.38,20.0]
[1735440712749,23.776884,194.45,194.38,20.0]
[1735440713750,31.86199427,194.45,194.38,20.0]
[1735440714823,23.776884,194.45,194.38,20.0]
[1735440720445,23.776884,194.45,194.36,5.9]
[1735440720766,23.776884,194.45,194.32,16.09057954]
[1735440720941,23.776884,194.45,194.35,20.0]
[1735440721457,23.776884,194.42,194.35,20.0]
[1735440722558,23.776884,194.43,194.35,20.0]
[1735440723672,31.86199427,194.43,194.35,20.0]
[1735440724969,23.776884,194.43,194.35,20.0]
[1735440726375,8.08511027,194.44,194.35,30.19057954]
[1735440726589,23.776884,194.44,194.35,30.19057954]
[1735440726763,23.776884,194.44,194.35,36.09057954]
[1735440726953,8.08511027,194.45,194.35,36.09057954]
[1735440726954,23.776884,194.45,194.35,36.09057954]
[1735440729777,23.776884,194.45,194.39,20.0]
[1735440730469,23.776884,194.46,194.39,20.0]
[1735440734187,31.86199427,194.46,194.39,20.0]
[1735440742992,23.776884,194.46,194.39,20.0]
[1735440743591,31.86199427,194.46,194.39,20.0]
[1735440745994,8.08511027,194.45,194.39,20.0]
[1735440748898,8.08511027,194.45,194.42,10.19057954]
[1735440749121,23.776884,194.45,194.42,10.19057954]
[1735440749699,23.776884,194.45,194.41,10.19057954]
[1735440750000,23.776884,194.48,194.41,10.19057954]
[1735440750208,8.08511027,194.49,194.44,10.19057954]
[1735440750797,23.776884,194.49,194.44,10.19057954]
[1735440751000,8.08511027,194.5,194.42,6.5023]
[1735440751201,8.08511027,194.5,194.44,10.19057954]
[1735440751376,23.776884,194.49,194.44,10.19057954]
[1735440752087,23.776884,194.5,194.44,10.19057954]
[1735440753016,23.776884,194.5,194.43,10.19057954]
[1735440753835,23.776884,194.5,194.42,16.69287954]
[1735440754710,23.776884,194.5,194.41,5.9]
[1735440755318,8.08511027,194.49,194.42,20.0]
[1735440756739,8.08511027,194.48,194.42,20.0]
[1735440756906,8.08511027,194.48,194.4,30.19057954]
[1735440757308,8.08511027,194.49,194.4,30.19057954]
[1735440760327,8.08511027,194.49,194.4,20.0]
[1735440762536,23.776884,194.48,194.4,20.0]
[1735440763544,23.776884,194.49,194.4,20.0]
[1735440766324,23.776884,194.49,194.37,8.1429]
[1735440766525,23.776884,194.49,194.37,6.5023]
[1735440766746,23.776884,194.49,194.41,20.0]
[1735440766931,23.776884,194.49,194.42,20.0]
[1735440767442,8.08511027,194.47,194.42,20.0]
[1735440767944,8.08511027,194.49,194.42,20.0]
[1735440768144,8.08511027,194.49,194.42,30.19057954]
[1735440768321,8.08511027,194.49,194.43,10.19057954]
[1735440768847,23.776884,194.52,194.42,20.0]
[1735440769021,23.776884,194.52,194.43,10.19057954]
[1735440771350,23.776884,194.52,194.42,30.19057954]
[1735440771524,23.776884,194.53,194.42,36.09057954]
[1735440774948,23.776884,194.53,194.42,25.9]
[1735440775732,23.776884,194.53,194.42,24.29]
[1735440779065,23.776884,194.53,194.42,5.9]
[1735440779246,23.776884,194.49,194.38,7.4105]
[1735440779444,23.776884,194.49,194.41,20.0]
[1735440779839,23.776884,194.47,194.37,6.5023]
[1735440780339,8.08511027,194.46,194.37,6.5023]
[1735440780536,23.776884,194.45,194.37,6.5023]
[1735440780728,23.776884,194.45,194.33,1.5105]
[1735440780940,23.776884,194.45,194.33,7.4105]
[1735440781142,23.776884,194.45,194.36,20.0]
[1735440781739,23.776884,194.45,194.35,20.0]
[1735440781740,23.776884,194.43,194.35,20.0]
[1735440782529,23.776884,194.43,194.36,20.0]
[1735440784160,23.776884,194.44,194.36,20.0]
[1735440787044,23.776884,194.44,194.35,20.0]
[1735440793677,23.776884,194.45,194.35,20.0]
[1735440794377,31.86199427,194.45,194.35,20.0]
[1735440796074,23.776884,194.45,194.35,20.0]
[1735440797976,31.86199427,194.46,194.35,20.0]
[1735440798178,23.776884,194.45,194.35,20.0]
[1735440798482,23.776884,194.45,194.33,1.5105]
[1735440798483,23.776884,194.42,194.32,6.3822]
[1735440798666,25.360984,194.42,194.32,6.3822]
[1735440799268,25.360984,194.42,194.28,1.5667]
[1735440799574,25.360984,194.42,194.31,20.0]
[1735440799786,23.776884,194.42,194.32,10.19057954]
[1735440800000,31.86199427,194.42,194.33,6.6319]
[1735440800166,31.86199427,194.42,194.35,20.0]
[1735440800479,8.08511027,194.44,194.35,20.0]
[1735440800675,23.776884,194.43,194.35,20.0]
[1735440801183,23.776884,194.44,194.33,6.6319]
[1735440805381,23.776884,194.45,194.33,6.6319]
[1735440807290,23.776884,194.45,194.33,16.82247954]
[1735440808192,23.776884,194.45,194.33,6.6319]
[1735440809089,23.776884,194.46,194.33,6.6319]
[1735440810078,31.86199427,194.46,194.33,6.6319]
[1735440810276,23.776884,194.42,194.33,6.6319]
[1735440811683,8.08511027,194.45,194.33,6.6319]
[1735440812085,31.86199427,194.46,194.33,6.6319]
[1735440812388,23.776884,194.45,194.33,6.6319]
[1735440813292,23.776884,194.46,194.33,6.6319]
[1735440814690,31.86199427,194.46,194.33,6.6319]
[1735440817301,8.08511027,194.45,194.33,6.6319]
[1735440821723,30.301584,194.41,194.27,7.8233]
[1735440821876,30.301584,194.41,194.27,6.2789]
[1735440821877,23.776884,194.39,194.27,6.2789]
[1735440823410,31.86199427,194.39,194.27,6.2789]
[1735440827104,23.776884,194.35,194.23,1.5444]
[1735440827693,23.776884,194.35,194.25,20.0]
[1735440828101,23.776884,194.33,194.22,6.2789]
[1735440829423,23.776884,194.33,194.2,1.5444]
[1735440829627,20.0,194.3,194.18,6.2789]
[1735440829803,23.776884,194.29,194.18,6.2789]
[1735440830199,23.776884,194.29,194.18,20.0]
[1735440831026,23.776884,194.29,194.16,1.5444]
[1735440831618,31.86199427,194.29,194.16,1.5444]
[1735440832115,31.86199427,194.29,194.18,20.0]
[1735440832299,23.776884,194.29,194.18,20.0]
[1735440835026,23.776884,194.29,194.17,20.0]
[1735440839026,20.0,194.3,194.18,20.0]
[1735440839239,8.08511027,194.33,194.18,30.19057954]
[1735440840133,23.776884,194.33,194.18,30.19057954]
[1735440841008,8.125,194.34,194.18,30.19057954]
[1735440841929,8.125,194.34,194.19,16.45127954]
[1735440842127,1.6003,194.34,194.23,20.0]
[1735440842432,1.6003,194.34,194.25,20.0]
[1735440842631,23.776884,194.33,194.25,20.0]
[1735440845612,14.54241027,194.39,194.25,20.0]
[1735440845813,1.6035,194.38,194.26,6.2607]
[1735440846229,1.6035,194.38,194.29,20.0]
[1735440846642,23.776884,194.37,194.29,20.0]
[1735440849136,23.776884,194.37,194.26,12.1607]
[1735440849847,23.776884,194.37,194.26,6.2607]
[1735440851347,23.776884,194.37,194.24,20.0]
[1735440852325,29.874584,194.37,194.24,20.0]
[1735440852526,23.776884,194.33,194.23,1.533]
[1735440857961,23.776884,194.33,194.21,6.3595]
[1735440858135,23.776884,194.31,194.21,6.3595]
[1735440861946,21.6173,194.32,194.21,6.3595]
[1735440862349,23.776884,194.31,194.21,6.3595]
[1735440863147,23.776884,194.34,194.21,6.3595]
[1735440863855,23.776884,194.36,194.21,6.3595]
[1735440865254,31.86199427,194.36,194.21,6.3595]
[1735440865431,31.86199427,194.36,194.21,16.55007954]
[1735440865632,31.86199427,194.36,194.25,20.0]
[1735440866054,23.776884,194.36,194.25,20.0]
[1735440866458,23.776884,194.36,194.24,20.0]
[1735440866658,31.86199427,194.36,194.24,20.0]
[1735440868273,23.776884,194.36,194.24,20.0]
[1735440868774,31.86199427,194.36,194.24,20.0]
[1735440870164,8.08511027,194.35,194.24,20.0]
[1735440870369,23.776884,194.34,194.24,20.0]
[1735440874168,31.86199427,194.34,194.24,20.0]
[1735440874759,23.776884,194.32,194.24,20.0]
[1735440877478,23.776884,194.32,194.21,12.2595]
[1735440878561,23.776884,194.29,194.21,12.2595]
[1735440880163,23.776884,194.29,194.21,6.3595]
[1735440885794,31.86199427,194.29,194.21,6.3595]
[1735440893304,23.776884,194.27,194.21,6.3595]
[1735440894001,23.776884,194.28,194.21,6.3595]
[1735440894703,31.86199427,194.28,194.21,6.3595]
[1735440896801,23.776884,194.28,194.21,6.3595]
[1735440898501,23.776884,194.28,194.18,1.614]
[1735440898701,31.86199427,194.28,194.2,20.0]
[1735440899409,31.86199427,194.28,194.17,6.2255]
[1735440899986,23.776884,194.25,194.17,6.2255]
[1735440900795,23.776884,194.23,194.17,6.2255]
[1735440904314,31.86199427,194.23,194.17,6.2255]
[1735440905007,23.776884,194.23,194.17,6.2255]
[1735440906817,31.86199427,194.25,194.17,6.2255]
[1735440907022,8.08511027,194.25,194.17,6.2255]
[1735440907519,23.776884,194.24,194.17,6.2255]
[1735440908118,23.776884,194.25,194.17,6.2255]
[1735440910222,31.86199427,194.25,194.17,6.2255]
[1735440911725,31.86199427,194.25,194.13,7.5332]
[1735440911901,33.41019427,194.25,194.13,7.5332]
[1735440912722,33.41019427,194.25,194.14,20.0]
[1735440912925,23.776884,194.22,194.14,20.0]
[1735440914402,23.776884,194.22,194.13,1.6332]
[1735440915930,8.08511027,194.23,194.13,1.6332]
[1735440915931,23.776884,194.23,194.13,1.6332]
[1735440917222,8.08511027,194.24,194.15,20.0]
[1735440917522,8.08511027,194.24,194.16,20.0]
[1735440918227,23.776884,194.24,194.16,20.0]
[1735440922214,23.776884,194.24,194.15,20.0]
[1735440923540,23.776884,194.24,194.14,20.0]
[1735440924142,23.776884,194.24,194.13,1.6332]
[1735440924829,31.86199427,194.24,194.11,12.1977]
[1735440925238,31.86199427,194.24,194.11,6.2977]
[1735440925839,8.08511027,194.23,194.11,6.2977]
[1735440926149,23.776884,194.22,194.08,1.5265]
[1735440926443,23.776884,194.17,194.08,1.5265]
[1735440926619,23.776884,194.17,194.06,6.5996]
[1735440927727,31.86199427,194.17,194.06,6.5996]
[1735440929041,23.776884,194.17,194.06,6.5996]
[1735440930118,23.776884,194.17,194.06,16.79017954]
[1735440931339,8.08511027,194.19,194.06,16.79017954]
[1735440931521,8.08511027,194.19,194.06,6.5996]
[1735440932528,31.86199427,194.2,194.06,6.5996]
[1735440933254,8.08511027,194.19,194.06,6.5996]
[1735440936846,8.08511027,194.19,194.09,1.5265]
[1735440937044,8.08511027,194.19,194.09,31.71707954]
[1735440937237,8.08511027,194.2,194.09,31.71707954]
[1735440937945,1.6206,194.21,194.09,31.71707954]
[1735440938655,23.776884,194.2,194.09,31.71707954]
[1735440940155,23.776884,194.2,194.09,37.61707954]
[1735440950255,8.08511027,194.22,194.14,16.09057954]
[1735440950570,8.08511027,194.22,194.16,10.19057954]
[1735440951475,23.776884,194.24,194.16,10.19057954]
[1735440952336,23.776884,194.26,194.16,10.19057954]
[1735440953562,23.776884,194.26,194.19,20.0]
[1735440957070,23.776884,194.26,194.18,20.0]
[1735440958238,23.776884,194.26,194.15,1.6208]
[1735440958653,23.776884,194.26,194.16,20.0]
[1735440959247,31.86199427,194.26,194.16,20.0]
[1735440959775,23.776884,194.24,194.16,20.0]
[1735440967977,23.776884,194.24,194.13,6.5273]
[1735440968757,23.776884,194.22,194.13,6.5273]
[1735440969792,31.86199427,194.22,194.13,6.5273]
[1735440970883,23.776884,194.22,194.13,6.5273]
[1735440972755,31.86199427,194.22,194.13,6.5273]
[1735440973456,23.776884,194.22,194.13,6.5273]
[1735440974285,23.776884,194.23,194.13,6.5273]
[1735440975686,23.776884,194.24,194.13,6.5273]
[1735440975987,31.86199427,194.24,194.13,6.5273]
[1735440979684,31.86199427,194.24,194.14,20.0]
[1735440979867,31.86199427,194.24,194.11,5.9]
[1735440980476,23.776884,194.21,194.14,20.0]
[1735440980881,8.08511027,194.22,194.16,20.0]
[1735440981078,8.08511027,194.22,194.19,20.0]
[1735440981661,8.08511027,194.24,194.19,20.0]
[1735440982189,8.08511027,194.24,194.15,16.86300891]
[1735440982379,23.776884,194.26,194.18,20.0]
[1735440982895,31.86199427,194.26,194.18,20.0]
[1735440985294,31.86199427,194.26,194.17,20.0]
[1735440988194,8.08511027,194.25,194.17,20.0]
[1735440993711,23.776884,194.23,194.17,20.0]
[1735440994382,23.776884,194.23,194.16,20.0]
[1735440994586,23.776884,194.23,194.13,5.9]
[1735440995398,8.08511027,194.22,194.13,5.9]
[1735440996302,8.08511027,194.21,194.13,5.9]
[1735440996797,8.08511027,194.22,194.13,5.9]
[1735440997306,31.86199427,194.23,194.13,5.9]
[1735440998005,8.08511027,194.22,194.13,5.9]
[1735441001712,8.08511027,194.21,194.13,5.9]
[1735441001897,8.08511027,194.21,194.11,1.6597]
[1735441001898,23.776884,194.2,194.11,1.6597]
[1735441002214,23.776884,194.2,194.1,20.0]
[1735441002409,23.776884,194.2,194.07,12.4587]
[1735441002597,8.08511027,194.17,194.07,12.4587]
[1735441002913,23.776884,194.16,194.07,6.5587]
[1735441003413,23.776884,194.16,194.1,20.0]
[1735441004011,8.08511027,194.14,194.1,20.0]
[1735441004213,23.776884,194.13,194.1,20.0]
[1735441004813,23.776884,194.15,194.05,0.77276846]
[1735441004996,23.776884,194.15,194.02,5.9]
[1735441005617,8.08511027,194.13,194.05,20.0]
[1735441005909,8.08511027,194.13,194.02,5.9]
[1735441006818,8.08511027,194.13,194.05,20.0]
[1735441007209,23.776884,194.13,194.05,20.0]
[1735441007801,31.86199427,194.15,194.05,20.0]
[1735441008218,8.08511027,194.15,194.07,20.0]
[1735441008713,31.86199427,194.15,194.07,20.0]
[1735441008943,23.776884,194.15,194.07,20.0]
[1735441009592,8.08511027,194.17,194.07,20.0]
[1735441011017,8.08511027,194.17,194.04,8.1479]
[1735441011807,23.776884,194.15,194.04,8.1479]
[1735441013919,1.6486,194.14,193.99,1.5793]
[1735441014118,1.6486,194.14,194.02,20.0]
[1735441015123,9.73371027,194.14,194.02,20.0]
[1735441017122,1.6486,194.14,194.02,20.0]
[1735441017830,1.6486,194.14,194.04,20.0]
[1735441019328,1.6486,194.14,194.03,20.0]
[1735441019738,23.776884,194.13,194.03,20.0]
[1735441021513,23.776884,194.13,194.04,20.0]
[1735441022327,23.776884,194.13,194.04,26.3938]
[1735441034440,23.776884,194.13,194.02,5.9]
[1735441036236,23.776884,194.13,194.05,20.0]
[1735441036540,23.776884,194.13,194.03,10.19057954]
[1735441039011,23.776884,194.13,194.05,20.0]
[1735441039446,23.776884,194.13,194.04,20.0]
[1735441041542,23.776884,194.13,193.99,14.0747]
[1735441041714,23.776884,194.13,193.99,24.26527954]
[1735441042649,23.776884,194.13,194.02,20.0]
[1735441043740,23.776884,194.13,194.03,10.19057954]
[1735441045044,8.08511027,194.16,194.05,10.19057954]
[1735441045227,8.08511027,194.16,194.06,6.2444]
[1735441045660,23.776884,194.15,194.06,6.2444]
[1735441046036,23.776884,194.17,194.06,6.2444]
[1735441047647,31.86199427,194.17,194.06,6.2444]
[1735441047826,31.86199427,194.17,194.06,17.20772451]
[1735441048227,31.86199427,194.17,194.06,6.2444]
[1735441048426,23.776884,194.18,194.06,22.33497954]
[1735441049237,23.776884,194.18,194.06,12.1444]
[1735441049856,23.776884,194.15,194.06,12.1444]
[1735441051351,31.86199427,194.15,194.06,12.1444]
[1735441051655,31.86199427,194.15,194.06,6.2444]
[1735441052759,23.776884,194.13,194.06,6.2444]
[1735441053359,23.776884,194.14,194.06,6.2444]
[1735441053847,8.08511027,194.15,194.06,6.2444]
[1735441054238,31.86199427,194.14,194.06,6.2444]
[1735441054651,23.776884,194.14,194.06,6.2444]
[1735441054856,8.08511027,194.15,194.06,6.2444]
[1735441055263,23.776884,194.14,194.06,6.2444]
[1735441056751,8.08511027,194.13,194.06,6.2444]
[1735441057040,8.08511027,194.13,194.05,5.9]
[1735441057458,8.08511027,194.13,194.06,20.0]
[1735441057660,8.08511027,194.13,194.01,12.0969]
[1735441057863,9.66861027,194.13,194.01,6.1969]
[1735441058237,31.86199427,194.11,194.01,6.1969]
[1735441058959,23.776884,194.08,194.01,6.1969]
[1735441059666,31.86199427,194.08,194.01,6.1969]
[1735441064347,23.776884,194.08,194.01,6.1969]
[1735441065267,8.08511027,194.09,194.01,16.38747954]
[1735441066450,8.08511027,194.09,194.01,22.28747954]
[1735441066769,8.08511027,194.09,194.01,12.0969]
[1735441067069,23.776884,194.1,194.01,12.0969]
[1735441068768,31.86199427,194.1,194.01,12.0969]
[1735441071346,23.776884,194.1,194.01,12.0969]
[1735441072084,31.86199427,194.1,194.01,12.0969]
[1735441077789,31.86199427,194.1,194.0,0.77297266]
[1735441077966,31.86199427,194.1,193.96,6.5335]
[1735441078364,23.776884,194.06,193.96,6.5335]
[1735441079390,23.776884,194.06,193.96,16.72407954]
[1735441079585,23.776884,194.06,193.99,20.0]
[1735441080491,23.776884,194.06,194.0,10.19057954]
[1735441080887,23.776884,194.08,194.0,10.19057954]
[1735441085477,23.776884,194.08,194.02,10.19057954]
[1735441085894,23.776884,194.1,194.02,10.19057954]
[1735441086394,23.776884,194.1,194.02,20.0]
[1735441087294,31.86199427,194.1,194.02,20.0]
[1735441090745,23.776884,194.08,193.99,10.19057954]
[1735441093788,23.776884,194.08,194.01,10.19057954]
[1735441093975,23.776884,194.08,194.02,10.19057954]
[1735441094984,8.08511027,194.1,194.02,10.19057954]
[1735441095708,8.08511027,194.1,194.01,10.19057954]
[1735441095899,23.776884,194.09,194.01,10.19057954]
[1735441097108,8.08511027,194.1,194.02,10.19057954]
[1735441097287,8.08511027,194.1,194.03,10.19057954]
[1735441097488,23.776884,194.11,194.03,10.19057954]
[1735441097687,8.08511027,194.12,194.05,10.19057954]
[1735441098012,8.08511027,194.12,194.02,13.9727]
[1735441098191,23.776884,194.11,194.06,20.0]
[1735441098384,23.776884,194.11,194.03,10.19057954]
[1735441099398,23.776884,194.11,194.02,24.16327954]
[1735441099707,23.776884,194.11,194.02,13.9727]
[1735441100002,31.86199427,194.11,194.02,13.9727]
[1735441101012,23.776884,194.09,194.02,13.9727]
[1735441101221,23.776884,194.09,194.02,24.16327954]
[1735441102111,23.776884,194.09,194.03,10.19057954]
[1735441102515,23.776884,194.09,194.02,18.26327954]
[1735441102812,23.776884,194.09,194.02,8.0727]
[1735441103321,31.86199427,194.09,194.02,8.0727]
[1735441104712,31.86199427,194.09,194.02,6.5663]
[1735441107113,31.86199427,194.09,194.02,16.75687954]
[1735441108707,8.08511027,194.08,194.02,16.75687954]
[1735441109517,23.776884,194.09,194.02,16.75687954]
[1735441110517,31.86199427,194.09,194.02,16.75687954]
[1735441111001,31.86199427,194.09,194.02,6.5663]
[1735441111196,31.86199427,194.09,194.02,16.75687954]
[1735441113423,8.08511027,194.08,194.02,16.75687954]
[1735441119225,23.776884,194.07,194.01,20.0]
[1735441119402,23.776884,194.07,194.0,10.19057954]
[1735441121522,23.776884,194.07,194.01,10.19057954]
[1735441123125,23.776884,194.07,194.0,20.0]